bitfinex/quotes_BTCUSD_20260103
["timestamp","ask_amount","ask_price","bid_price","bid_amount"]
[1767461619021,0.01103815,90032.0,90028.0,0.05641627]
[1767461620339,0.01103815,90032.0,90028.0,0.04530862]
[1767461620845,0.01103815,90032.0,90028.0,0.05641627]
[1767461625262,0.06657435,90032.0,90028.0,0.05641627]
[1767461625463,0.01110728,90031.0,90028.0,0.05641627]
[1767461627074,0.01103815,90032.0,90028.0,0.05641627]
[1767461627291,0.01103815,90032.0,90029.0,0.01110753]
[1767461627693,0.01110728,90031.0,90028.0,0.05641627]
[1767461628216,0.01103815,90032.0,90029.0,0.01110753]
[1767461629207,0.01110691,90034.0,90030.0,0.0111074]
[1767461629402,0.01110691,90034.0,90030.0,0.06664397]
[1767461629609,0.01110703,90033.0,90030.0,0.01106178]
[1767461634192,0.01110703,90033.0,90029.0,0.06664485]
[1767461634840,0.01110703,90033.0,90030.0,0.0111074]
[1767461637226,0.01110703,90033.0,90029.0,0.06664485]
[1767461637874,0.01110716,90032.0,90029.0,0.01110753]
[1767461641145,0.01022616,90032.0,90029.0,0.01110753]
[1767461641713,0.05553553,90033.0,90029.0,0.01110753]
[1767461641914,0.06664188,90034.0,90029.0,0.0666448]
[1767461642300,0.01110617,90040.0,90032.0,0.04753859]
[1767461642511,0.03330617,90040.0,90035.0,0.05864538]
[1767461643116,0.01110555,90045.0,90042.0,0.01110592]
[1767461643337,0.01110543,90046.0,90042.0,0.06608097]
[1767461643538,0.03330543,90046.0,90043.0,0.0111058]
[1767461647840,0.03330543,90046.0,90042.0,0.01055135]
[1767461650617,0.01110555,90045.0,90042.0,0.01055135]
[1767461650946,0.01110555,90045.0,90040.0,0.06663659]
[1767461651456,0.01110568,90044.0,90040.0,0.06663659]
[1767461651652,0.01110568,90044.0,90041.0,0.01110605]
[1767461654781,0.01110568,90044.0,90040.0,0.06663659]
[1767461655887,0.01110568,90044.0,90041.0,0.01110605]
[1767461656090,0.01110568,90044.0,90041.0,0.01106043]
[1767461659625,0.01110555,90045.0,90042.0,0.01110592]
[1767461659958,0.01110568,90044.0,90040.0,0.06663659]
[1767461660182,0.000999,90042.0,90040.0,0.06663659]
[1767461660589,0.01110568,90044.0,90040.0,0.06663659]
[1767461661136,0.01110555,90045.0,90041.0,0.01110605]
[1767461662410,0.01110543,90046.0,90042.0,0.06663556]
[1767461662990,0.06663295,90046.0,90042.0,0.01110592]
[1767461663310,0.000999,90042.0,90040.0,0.06663675]
[1767461663912,0.0111058,90043.0,90038.0,0.01110642]
[1767461664089,0.01110617,90040.0,90036.0,0.06663986]
[1767461664288,0.01115397,90040.0,90036.0,0.06663986]
[1767461671059,0.01115397,90040.0,90037.0,0.01110654]
[1767461672124,4.78e-05,90040.0,90037.0,0.06663881]
[1767461672982,4.78e-05,90040.0,90037.0,0.06659319]
[1767461677716,4.78e-05,90040.0,90038.0,0.0555317]
[1767461680009,4.78e-05,90040.0,90038.0,0.05548608]
[1767461682720,0.01110555,90045.0,90041.0,0.01110605]
[1767461684713,0.01110555,90045.0,90042.0,0.01110592]
[1767461685704,0.53960873,90051.0,90042.0,0.01110592]
[1767461685705,0.04547686,90061.0,90043.0,0.0111058]
[1767461685885,0.39298205,90072.0,90048.0,0.01110518]
[1767461685886,0.01110469,90052.0,90048.0,0.01110518]
[1767461686088,0.01039125,90051.0,90048.0,0.01110518]
[1767461686311,0.05658155,90052.0,90049.0,0.01110506]
[1767461686626,0.04547686,90052.0,90049.0,0.01010606]
[1767461686854,0.04547686,90052.0,90049.0,0.06563111]
[1767461687627,0.04547686,90052.0,90049.0,0.06558549]
[1767461688127,0.04547686,90052.0,90050.0,0.05552418]
[1767461688328,0.04447786,90052.0,90050.0,0.05552418]
[1767461690373,0.04447786,90052.0,90050.0,0.04728716]
[1767461693279,0.04562586,90058.0,90052.0,0.01110469]
[1767461693492,0.05586099,90057.0,90055.0,0.01110432]
[1767461693634,0.01038413,90056.0,90055.0,0.01010532]
[1767461694204,0.01038413,90056.0,90053.0,0.06662742]
[1767461694563,0.01038413,90056.0,90053.0,0.01110457]
[1767461695096,0.01038413,90056.0,90053.0,0.01105895]
[1767461695765,0.01038413,90056.0,90053.0,0.06658137]
[1767461697285,0.01038413,90056.0,90053.0,0.01105895]
[1767461700194,0.04830394,90059.0,90056.0,0.05651943]
[1767461700396,0.04830394,90059.0,90057.0,0.01110407]
[1767461700972,0.0222,90060.0,90058.0,0.05551934]
[1767461701136,0.0222,90060.0,90058.0,0.05547373]
[1767461703191,0.0222,90060.0,90058.0,0.05542812]
[1767461703749,0.0222,90060.0,90057.0,0.06662446]
[1767461704967,0.0222,90060.0,90057.0,0.01110407]
[1767461705558,0.07050394,90060.0,90057.0,0.01110407]
[1767461705757,0.08160764,90060.0,90055.0,0.06662593]
[1767461705960,0.08160764,90060.0,90057.0,0.01110407]
[1767461706516,0.0222,90060.0,90057.0,0.01110407]
[1767461706953,0.01110358,90061.0,90057.0,0.01110407]
[1767461708172,0.01110358,90061.0,90057.0,0.06662399]
[1767461708623,0.06662118,90062.0,90058.0,0.01110395]
[1767461708788,0.01110346,90062.0,90058.0,0.01110395]
[1767461708993,0.01110333,90063.0,90059.0,0.01110383]
[1767461709335,0.01110346,90062.0,90059.0,0.01110383]
[1767461709886,0.01110346,90062.0,90059.0,0.00467395]
[1767461710085,0.01110346,90062.0,90058.0,0.06662326]
[1767461710456,0.01110346,90062.0,90059.0,0.01110383]
[1767461710674,0.01110346,90062.0,90059.0,0.01105822]
[1767461711313,0.06662121,90062.0,90058.0,0.00927178]
[1767461711524,0.0111037,90060.0,90057.0,0.01110407]
[1767461712803,0.0111037,90060.0,90055.0,0.06662542]
[1767461713250,0.0111037,90060.0,90056.0,0.06662473]
[1767461714865,0.0111037,90060.0,90057.0,0.01110407]
[1767461717643,0.01110358,90061.0,90058.0,0.01110395]
[1767461719331,0.01110346,90062.0,90059.0,0.01110383]
[1767461719630,0.01110346,90062.0,90059.0,0.01105822]
[1767461719805,0.06662042,90063.0,90060.0,0.0111037]
[1767461719806,0.01110333,90063.0,90060.0,0.0111037]
[1767461722108,0.08160703,90065.0,90060.0,0.0111037]
[1767461722314,0.01038595,90064.0,90060.0,0.0111037]
[1767461722530,0.01038595,90063.0,90060.0,0.06662183]
[1767461722735,0.03330309,90065.0,90060.0,0.06662183]
[1767461723082,0.01038574,90064.0,90060.0,0.06662183]
[1767461723230,0.01038574,90063.0,90060.0,0.06662183]
[1767461723415,0.03330309,90065.0,90061.0,0.05551737]
[1767461723610,0.01110321,90064.0,90061.0,0.01110358]
[1767461724456,0.06661897,90065.0,90061.0,0.01110358]
[1767461724457,0.01110309,90065.0,90062.0,0.01110346]
[1767461725544,0.01110309,90065.0,90062.0,0.01105785]
[1767461727101,0.04830394,90074.0,90062.0,0.01105785]
[1767461727102,0.04830394,90084.0,90072.0,0.01100221]
[1767461727255,0.000999,90072.0,90071.0,0.01110235]
[1767461727462,0.04930294,90072.0,90070.0,0.06661441]
[1767461727750,0.04830394,90072.0,90070.0,0.01110247]
[1767461727958,0.04830394,90072.0,90069.0,0.05551254]
[1767461728391,0.04830394,90072.0,90070.0,0.01110247]
[1767461728587,0.04330394,90072.0,90067.0,0.01100283]
[1767461728792,0.01110272,90068.0,90065.0,0.01110309]
[1767461729257,0.01110259,90069.0,90065.0,0.01110309]
[1767461729458,0.04830394,90071.0,90067.0,0.01110284]
[1767461729862,0.05940629,90071.0,90068.0,0.01110272]
[1767461730229,0.04830394,90071.0,90068.0,0.01110272]
[1767461731228,0.06661758,90067.0,90052.0,0.22209237]
[1767461731415,0.06661758,90067.0,90058.0,0.0222]
[1767461731611,0.01110284,90067.0,90063.0,0.09992274]
[1767461731814,0.06661665,90068.0,90064.0,0.01110321]
[1767461732068,0.01110296,90066.0,90063.0,0.03330282]
[1767461732732,0.06661822,90066.0,90063.0,0.03330282]
[1767461733541,0.06661822,90066.0,90063.0,0.0332589]
[1767461733742,0.01110296,90066.0,90063.0,0.0332589]
[1767461736081,0.01110321,90064.0,90060.0,0.0111037]
[1767461736264,0.01110321,90064.0,90060.0,0.0333037]
[1767461736461,0.01110321,90064.0,90061.0,0.0332589]
[1767461736858,0.10175033,90063.0,90061.0,0.0332589]
[1767461737197,0.06662118,90062.0,90058.0,0.01110395]
[1767461737545,0.01110346,90062.0,90058.0,0.01110395]
[1767461738971,0.01110346,90062.0,90058.0,0.01105834]
[1767461739794,0.01110358,90061.0,90057.0,0.01110407]
[1767461740127,0.0111037,90060.0,90057.0,0.01110407]
[1767461740267,0.0111037,90060.0,90056.0,0.0111042]
[1767461740464,0.01110346,90062.0,90060.0,0.000999]
[1767461740683,0.01110346,90062.0,90059.0,0.01110383]
[1767461740881,0.01110346,90062.0,90059.0,0.01105991]
[1767461744009,0.01110346,90062.0,90058.0,0.06662359]
[1767461744916,0.01110346,90062.0,90059.0,0.01110383]
[1767461748534,0.01110346,90062.0,90059.0,0.01105991]
[1767461750828,0.01110333,90063.0,90059.0,0.01105991]
[1767461756789,0.01110346,90062.0,90059.0,0.01006091]
[1767461759975,0.00866846,90062.0,90058.0,0.01110395]
[1767461760598,0.00866846,90062.0,90059.0,0.05551915]
[1767461760813,0.01110333,90063.0,90060.0,0.0111037]
[1767461763482,0.01110333,90063.0,90059.0,0.01110383]
[1767461763649,0.0666204,90063.0,90059.0,0.01110383]
[1767461764008,0.01110346,90062.0,90059.0,0.01110383]
[1767461765039,0.06662118,90062.0,90058.0,0.01110395]
[1767461770166,0.01110346,90062.0,90059.0,0.05551915]
[1767461770372,0.01110346,90062.0,90059.0,0.06662298]
[1767461770939,0.06662119,90062.0,90058.0,0.01110395]
[1767461771140,0.0111037,90060.0,90057.0,0.06662401]
[1767461772978,0.06662298,90059.0,90054.0,0.05552189]
[1767461773182,0.01110407,90057.0,90054.0,0.01110444]
[1767461773390,0.01110395,90058.0,90055.0,0.01110432]
[1767461774365,0.01146258,90059.0,90058.0,0.000999]
[1767461774582,0.01146258,90059.0,90056.0,0.0111042]
[1767461775626,0.00035875,90059.0,90056.0,0.0111042]
[1767461776731,7.5e-07,90059.0,90057.0,0.05551996]
[1767461776948,7.5e-07,90059.0,90056.0,0.0666248]
[1767461780302,7.5e-07,90059.0,90057.0,0.05551998]
[1767461795912,0.01110247,90070.0,90064.0,0.01110321]
[1767461796084,0.000358,90064.0,90062.0,0.05551672]
[1767461796283,0.01110296,90066.0,90062.0,0.05551672]
[1767461796929,0.01110296,90066.0,90063.0,0.01110333]
[1767461797371,0.01110296,90066.0,90063.0,0.01074533]
[1767461802576,0.01110296,90066.0,90062.0,0.05551672]
[1767461802786,0.01110296,90066.0,90063.0,0.01110333]
[1767461807316,0.01110296,90066.0,90061.0,0.01662095]
[1767461807891,0.01110296,90066.0,90061.0,0.02772453]
[1767461808215,0.06661814,90066.0,90061.0,0.02772453]
[1767461808534,0.01110309,90065.0,90061.0,0.02772453]
[1767461813298,0.01110309,90065.0,90062.0,0.01110346]
[1767461815108,0.01101182,90065.0,90062.0,0.01110346]
[1767461817455,0.01110296,90066.0,90062.0,0.0666204]
[1767461817912,0.01110284,90067.0,90066.0,0.000999]
[1767461818113,0.01110284,90067.0,90063.0,0.05551633]
[1767461818758,0.01110284,90067.0,90064.0,0.04995515]
[1767461818964,0.01110284,90067.0,90064.0,0.06105836]
[1767461819640,0.01110284,90067.0,90064.0,0.01110321]
[1767461819759,0.01110296,90066.0,90062.0,0.11213905]
[1767461819972,0.000999,90064.0,90062.0,0.11213905]
[1767461820193,0.01110296,90066.0,90062.0,0.11213905]
[1767461820401,0.06661816,90066.0,90062.0,0.11213905]
[1767461821859,0.06661816,90066.0,90063.0,0.04551865]
[1767461822200,0.01110284,90067.0,90063.0,0.04551865]
[1767461822449,0.05551484,90066.0,90063.0,0.04551865]
[1767461822954,0.0666178,90066.0,90063.0,0.04551865]
[1767461827159,0.01110296,90066.0,90063.0,0.04551865]
[1767461828982,0.01110296,90066.0,90063.0,0.03729806]
[1767461829502,0.01110296,90066.0,90063.0,0.04840139]
[1767461830174,0.01110284,90067.0,90063.0,0.10391773]
[1767461830780,0.01110284,90067.0,90063.0,0.06661967]
[1767461831427,0.01110284,90067.0,90064.0,0.01110321]
[1767461833155,0.01110272,90068.0,90064.0,0.06661877]
[1767461833312,0.00010752,90070.0,90065.0,0.06661816]
[1767461833511,0.06672246,90070.0,90065.0,0.06661816]
[1767461834152,0.06672246,90070.0,90066.0,0.04551865]
[1767461834976,0.06672246,90070.0,90066.0,0.05662161]
[1767461836707,0.01120999,90070.0,90066.0,0.05662161]
[1767461838090,0.01110259,90069.0,90066.0,0.05562261]
[1767461838249,0.01110272,90068.0,90064.0,0.05662186]
[1767461838434,0.01121522,90068.0,90064.0,0.05662186]
[1767461839271,0.06672918,90068.0,90064.0,0.05662186]
[1767461841499,0.06672918,90068.0,90064.0,0.01110321]
[1767461841895,0.01110284,90067.0,90064.0,0.01110321]
[1767461842703,0.01121534,90067.0,90064.0,0.01110321]
[1767461845316,0.01121534,90067.0,90063.0,0.06661966]
[1767461845684,0.0001125,90067.0,90064.0,0.06661881]
[1767461846513,0.0001125,90067.0,90064.0,0.01110321]
[1767461846786,0.0001125,90067.0,90064.0,0.06661891]
[1767461847297,5e-07,90067.0,90065.0,0.05551507]
[1767461850208,5e-07,90067.0,90064.0,0.06661891]
[1767461852549,5e-07,90067.0,90065.0,0.05551506]
[1767461857796,5e-07,90067.0,90064.0,0.01110321]
[1767461858138,5e-07,90067.0,90063.0,0.06661978]
[1767461858578,5e-07,90067.0,90064.0,0.05551563]
[1767461859014,5e-07,90067.0,90064.0,0.06661884]
[1767461866585,5e-07,90067.0,90064.0,0.01110321]
[1767461866982,5e-07,90067.0,90065.0,0.1048097]
[1767461867184,5e-07,90067.0,90066.0,0.04929424]
[1767461867573,5e-07,90067.0,90065.0,0.05551546]
[1767461868705,5e-07,90067.0,90065.0,0.1048097]
[1767461871056,5e-07,90067.0,90065.0,0.05551546]
[1767461871475,5e-07,90067.0,90065.0,0.1048097]
[1767461871683,5e-07,90067.0,90065.0,0.05551546]
[1767461873307,5e-07,90067.0,90065.0,0.04724769]
[1767461873697,5e-07,90067.0,90065.0,0.09654193]
[1767461874775,5e-07,90067.0,90065.0,0.04724769]
[1767461875697,5e-07,90067.0,90065.0,0.09654193]
[1767461876121,5e-07,90067.0,90065.0,0.04724769]
[1767461883004,0.000112,90065.0,90052.0,0.22209311]
[1767461883130,0.000112,90065.0,90062.0,0.06662036]
[1767461883331,0.01121509,90065.0,90062.0,0.01110346]
[1767461883535,0.01110296,90066.0,90063.0,0.01110333]
[1767461883747,0.01110334,90067.0,90063.0,0.01110333]
[1767461884359,0.01110334,90067.0,90063.0,0.01099133]
[1767461887139,0.01110334,90067.0,90064.0,0.01110321]
[1767461887983,8.934e-05,90066.0,90063.0,0.06650755]
[1767461888723,8.934e-05,90066.0,90063.0,0.01099133]
[1767461888923,0.0111923,90066.0,90063.0,0.01099133]
[1767461892911,0.01110309,90065.0,90062.0,0.01110346]
[1767461893109,0.01110309,90065.0,90061.0,0.01110358]
[1767461893535,0.01103408,90065.0,90061.0,0.01110358]
[1767461894925,8.934e-05,90064.0,90061.0,0.01110358]
[1767461896658,0.01110346,90062.0,90059.0,0.01110383]
[1767461897836,0.01110333,90063.0,90060.0,0.0111037]
[1767461899061,8.934e-05,90062.0,90060.0,0.0111037]
[1767461901167,2.033e-05,90062.0,90060.0,0.0111037]
[1767461901368,0.00947709,90063.0,90060.0,0.0111037]
[1767461902339,0.00947709,90063.0,90060.0,0.01081669]
[1767461907223,0.00947709,90063.0,90060.0,0.05615345]
[1767461907775,0.00947709,90063.0,90060.0,0.01081669]
[1767461908235,0.00940808,90063.0,90060.0,0.01081669]
[1767461912684,0.01110321,90064.0,90063.0,0.000999]
[1767461912968,0.01110321,90064.0,90061.0,0.01110358]
[1767461913834,0.000999,90061.0,90060.0,0.04663963]
[1767461914133,0.05551773,90062.0,90060.0,0.04663963]
[1767461914372,0.05551773,90062.0,90058.0,0.01110395]
[1767461914373,0.06662119,90062.0,90058.0,0.05774358]
[1767461914925,0.01110358,90061.0,90058.0,0.05774358]
[1767461915136,0.01110358,90061.0,90058.0,0.04663963]
[1767461915601,0.01103457,90061.0,90058.0,0.04663963]
[1767461917295,0.01103457,90061.0,90058.0,0.05774358]
[1767461917640,0.01110346,90062.0,90058.0,0.05774358]
[1767461917845,0.01110346,90062.0,90058.0,0.11326291]
[1767461918301,0.01110346,90062.0,90059.0,0.04663963]
[1767461918460,5.325e-05,90061.0,90059.0,0.03838003]
[1767461920609,5.325e-05,90061.0,90059.0,0.09389861]
[1767461921300,5.325e-05,90061.0,90059.0,0.03838003]
[1767461921483,5.325e-05,90061.0,90059.0,0.03738103]
[1767461921682,0.01110383,90059.0,90053.0,0.01110457]
[1767461921909,0.01110432,90055.0,90052.0,0.0222]
[1767461922076,0.01110432,90055.0,90052.0,0.06883963]
[1767461922482,0.01110432,90055.0,90053.0,0.04663963]
[1767461922678,0.01110383,90059.0,90053.0,0.04663963]
[1767461922679,0.0111042,90056.0,90053.0,0.04663963]
[1767461922921,0.01103519,90056.0,90053.0,0.04663963]
[1767461923903,5.325e-05,90055.0,90053.0,0.04663963]
[1767461926423,2.5e-07,90055.0,90053.0,0.04663963]
[1767461928266,2.5e-07,90055.0,90053.0,0.04658663]
[1767461928630,2.5e-07,90055.0,90052.0,0.07951605]
[1767461929047,2.5e-07,90055.0,90052.0,0.12615568]
[1767461929212,2.5e-07,90055.0,90053.0,0.04663963]
[1767461932827,0.05552242,90055.0,90053.0,0.04663963]
[1767461933132,0.05552242,90055.0,90053.0,0.03838244]
[1767461934101,0.01110469,90052.0,90047.0,0.01110531]
[1767461934300,0.01010569,90052.0,90048.0,0.07994481]
[1767461934455,0.01010569,90052.0,90049.0,0.04663963]
[1767461935272,0.01010569,90052.0,90050.0,0.04663963]
[1767461937675,0.01003668,90052.0,90050.0,0.04663963]
[1767461939341,0.01003668,90052.0,90050.0,0.04564063]
[1767461939541,0.06662702,90054.0,90050.0,0.04564063]
[1767461940614,0.01110457,90053.0,90050.0,0.04564063]
[1767461941239,0.01110457,90053.0,90050.0,0.05674557]
[1767461942422,0.01110457,90053.0,90050.0,0.04564063]
[1767461944342,0.01110457,90053.0,90050.0,0.05674557]
[1767461944731,0.01010557,90053.0,90050.0,0.05674557]
[1767461947456,0.01010557,90053.0,90050.0,0.04564063]
[1767461948428,0.0656289,90053.0,90050.0,0.04564063]
[1767461949197,0.01110481,90051.0,90048.0,0.0222]
[1767461949355,0.01110481,90051.0,90048.0,0.03330518]
[1767461949757,0.01110481,90051.0,90048.0,0.08272352]
[1767461949996,0.01110481,90051.0,90049.0,0.04941834]
[1767461950642,0.01110481,90051.0,90049.0,0.04113255]
[1767461952499,0.0110358,90051.0,90049.0,0.04113255]
[1767461965150,0.06656025,90051.0,90049.0,0.04113255]
[1767461966033,0.06656025,90051.0,90049.0,0.03284474]
[1767461967467,0.06649124,90051.0,90049.0,0.03284474]
[1767461971424,0.06649124,90051.0,90048.0,0.0222]
[1767461972706,0.06642222,90051.0,90048.0,0.0222]
[1767461975780,0.06635321,90051.0,90048.0,0.0222]
[1767461977565,0.06635321,90051.0,90048.0,0.021201]
[1767461980777,0.06635321,90051.0,90048.0,0.01290862]
[1767461987890,0.06635321,90051.0,90047.0,0.05623364]
[1767461988237,0.01110494,90050.0,90047.0,0.05623364]
[1767461988442,0.01010594,90050.0,90047.0,0.05623364]
[1767461990267,0.01003692,90050.0,90047.0,0.05623364]
[1767461990669,0.01010557,90053.0,90048.0,0.01110518]
[1767461990989,0.01110469,90052.0,90048.0,0.01110518]
[1767461992222,0.01110469,90052.0,90048.0,0.06663072]
[1767461992811,0.01110469,90052.0,90048.0,0.11175905]
[1767461994023,0.01110469,90052.0,90049.0,0.01110506]
[1767461994567,0.01010557,90053.0,90050.0,0.01110494]
[1767461996370,0.01110444,90054.0,90050.0,0.01110494]
[1767461997221,0.01110457,90053.0,90050.0,0.01110494]
[1767461997406,0.01103555,90053.0,90050.0,0.01110494]
[1767461998480,0.01103555,90053.0,90049.0,0.06662996]
[1767461998817,0.01103555,90053.0,90050.0,0.01110494]
[1767461999927,0.01110444,90054.0,90050.0,0.06662928]
[1767462001222,0.01110457,90053.0,90050.0,0.01110494]
[1767462005856,0.05552076,90057.0,90051.0,0.0666289]
[1767462006133,0.05552076,90057.0,90053.0,0.01110457]
[1767462006280,0.05552076,90057.0,90052.0,0.01110469]
[1767462006556,0.06655662,90056.0,90052.0,0.01110469]
[1767462006734,0.01110444,90054.0,90051.0,0.0666289]
[1767462007352,0.01110444,90054.0,90051.0,0.01110481]
[1767462008554,0.01110432,90055.0,90052.0,0.01110469]
[1767462009165,0.01110432,90055.0,90051.0,0.01110481]
[1767462010484,0.01110432,90055.0,90052.0,0.05552347]
[1767462010720,0.01110432,90055.0,90051.0,0.01110481]
[1767462012368,0.01110432,90055.0,90052.0,0.01110469]
[1767462012571,0.0110353,90055.0,90052.0,0.01110469]
[1767462016826,0.0110353,90055.0,90051.0,0.01110481]
[1767462018436,0.0110353,90055.0,90050.0,0.06662904]
[1767462018834,0.0110353,90055.0,90051.0,0.01110481]
[1767462021174,0.0110353,90055.0,90052.0,0.01110469]
[1767462021378,0.23315676,90069.0,90055.0,0.01110432]
[1767462021577,0.05551732,90062.0,90055.0,0.01110432]
[1767462022818,0.06662207,90061.0,90055.0,0.01110432]
[1767462023220,0.0111037,90060.0,90056.0,0.0111042]
[1767462025473,0.01110383,90059.0,90053.0,0.01110457]
[1767462026567,0.01110407,90057.0,90054.0,0.01110444]
[1767462027175,0.01103504,90057.0,90054.0,0.01110444]
[1767462029982,0.01089134,90057.0,90054.0,0.01110444]
[1767462030183,0.01074763,90057.0,90054.0,0.01110444]
[1767462032116,0.01110395,90058.0,90055.0,0.01110432]
[1767462032588,0.06662409,90058.0,90054.0,0.01110444]
[1767462032790,0.06633664,90058.0,90054.0,0.01110444]
[1767462033230,0.0108165,90058.0,90054.0,0.01110444]
[1767462033566,0.01077082,90058.0,90054.0,0.0666263]
[1767462033746,0.01077082,90058.0,90053.0,0.06662695]
[1767462033914,0.01077082,90058.0,90054.0,0.01110444]
[1767462034754,0.01077082,90058.0,90055.0,0.01110432]
[1767462036904,0.01110383,90059.0,90055.0,0.01110432]
[1767462038675,0.01110383,90059.0,90056.0,0.0111042]
[1767462039196,0.06662247,90060.0,90056.0,0.0111042]
[1767462039895,0.0111037,90060.0,90057.0,0.01110407]
[1767462040095,0.0101047,90060.0,90057.0,0.01110407]
[1767462044877,0.000999,90057.0,90056.0,0.0111042]
[1767462045026,0.01110383,90059.0,90056.0,0.0111042]
[1767462049994,0.01110395,90058.0,90054.0,0.01110444]
[1767462050506,0.01103492,90058.0,90054.0,0.01110444]
[1767462051358,0.01103492,90058.0,90054.0,0.06662628]
[1767462052361,0.01110407,90057.0,90054.0,0.01110444]
[1767462053416,0.01103492,90058.0,90055.0,0.01110432]
[1767462053623,0.01110383,90059.0,90055.0,0.01110432]
[1767462055340,0.01110383,90059.0,90056.0,0.0111042]
[1767462055515,0.01110383,90059.0,90056.0,0.05720341]
[1767462055903,0.0656236,90060.0,90057.0,0.01110407]
[1767462056111,0.0656236,90060.0,90057.0,0.01106013]
[1767462056310,0.0656236,90060.0,90057.0,0.01075968]
[1767462059690,0.0656236,90060.0,90056.0,0.05720341]
[1767462060299,0.06662338,90059.0,90056.0,0.04609921]
[1767462061112,0.05552014,90058.0,90056.0,0.04609921]
[1767462061538,0.05552014,90058.0,90056.0,0.04605527]
[1767462063484,0.05552014,90058.0,90056.0,0.04601133]
[1767462063699,0.06662338,90059.0,90056.0,0.04601133]
[1767462064042,0.06662338,90059.0,90055.0,0.01110432]
[1767462065189,0.06662338,90059.0,90055.0,0.06662555]
[1767462065394,0.06662338,90059.0,90054.0,0.11563037]
[1767462065586,0.06655435,90059.0,90055.0,0.01110432]
[1767462066445,0.01110395,90058.0,90055.0,0.01110432]
[1767462069609,0.00810395,90058.0,90055.0,0.01110432]
[1767462070128,0.06362411,90058.0,90054.0,0.11563037]
[1767462071093,0.00810395,90058.0,90054.0,0.11563037]
[1767462071300,0.06655435,90059.0,90055.0,0.01110432]
[1767462071614,0.0110348,90059.0,90056.0,0.0111042]
[1767462072233,0.06655433,90059.0,90055.0,0.01110432]
[1767462072883,0.0664853,90059.0,90055.0,0.01110432]
[1767462073082,0.01110395,90058.0,90055.0,0.01110432]
[1767462073622,0.0666241,90058.0,90054.0,0.06006466]
[1767462073991,0.01110407,90057.0,90054.0,0.06006466]
[1767462074449,0.06662483,90057.0,90054.0,0.04800516]
[1767462074659,0.05552152,90056.0,90054.0,0.04800516]
[1767462074953,0.01110469,90052.0,90049.0,0.04900416]
[1767462075164,0.06662757,90053.0,90049.0,0.06010922]
[1767462075336,0.06662572,90056.0,90052.0,0.000999]
[1767462075517,0.01110432,90055.0,90052.0,0.000999]
[1767462075720,0.01110432,90055.0,90051.0,0.06662835]
[1767462075912,0.01110432,90055.0,90052.0,0.01110469]
[1767462077237,0.0111042,90056.0,90052.0,0.06662755]
[1767462078678,0.06662561,90056.0,90051.0,0.06662835]
[1767462078828,0.06662561,90056.0,90052.0,0.01110469]
[1767462079265,0.01110432,90055.0,90052.0,0.01110469]
[1767462079447,0.01110432,90055.0,90051.0,0.06662835]
[1767462079645,0.01110444,90054.0,90051.0,0.01110481]
[1767462080049,0.01110444,90054.0,90050.0,0.01110494]
[1767462080251,0.06662701,90054.0,90050.0,0.01110494]
[1767462080563,0.01110444,90054.0,90051.0,0.01110481]
[1767462081224,0.01110457,90053.0,90050.0,0.01110494]
[1767462081853,0.01110444,90054.0,90050.0,0.01110494]
[1767462082129,0.01110444,90054.0,90051.0,0.01110481]
[1767462087587,0.06662655,90055.0,90052.0,0.01110469]
[1767462087588,0.01110432,90055.0,90052.0,0.01110469]
[1767462090103,0.01010532,90055.0,90052.0,0.01110469]
[1767462090943,0.01010532,90055.0,90050.0,0.06662927]
[1767462091177,0.0111042,90056.0,90053.0,0.01110457]
[1767462091787,0.0111042,90056.0,90053.0,0.06096815]
[1767462092873,0.0111042,90056.0,90053.0,0.04986358]
[1767462093941,0.0111042,90056.0,90053.0,0.06096815]
[1767462104435,0.01110407,90057.0,90054.0,0.01110444]
[1767462104656,0.01110407,90057.0,90054.0,0.06096802]
[1767462106655,0.01110407,90057.0,90054.0,0.04986358]
[1767462106859,0.01110407,90057.0,90054.0,0.06096802]
[1767462109673,0.05552011,90058.0,90054.0,0.06096802]
[1767462109674,0.06662333,90059.0,90055.0,0.01110432]
[1767462110005,0.01110395,90058.0,90055.0,0.01110432]
[1767462116282,0.01110395,90058.0,90054.0,0.06096802]
[1767462116445,0.01110407,90057.0,90054.0,0.06096802]
[1767462117264,0.06662482,90057.0,90054.0,0.04886458]
[1767462117985,0.05552135,90056.0,90054.0,0.04886458]
[1767462119579,0.06662482,90057.0,90054.0,0.04886458]
[1767462121203,0.06662482,90057.0,90054.0,0.04057019]
[1767462122802,0.01110395,90058.0,90057.0,0.000999]
[1767462123049,0.01110383,90059.0,90055.0,0.01110432]
[1767462123965,0.01010483,90059.0,90055.0,0.01110432]
[1767462124717,0.01010483,90059.0,90055.0,0.06662557]
[1767462124926,0.01010483,90059.0,90056.0,0.0111042]
[1767462127810,0.06662173,90061.0,90057.0,0.01110407]
[1767462128014,0.01039874,90060.0,90057.0,0.01110407]
[1767462128214,0.0111037,90060.0,90057.0,0.01110407]
[1767462129871,0.0111037,90060.0,90056.0,0.06662484]
[1767462129872,0.01110383,90059.0,90056.0,0.0111042]
[1767462132019,0.0111037,90060.0,90057.0,0.01110407]
[1767462133370,0.01101582,90060.0,90057.0,0.01110407]
[1767462133578,0.06653476,90060.0,90056.0,0.0111042]
[1767462133906,0.01110383,90059.0,90056.0,0.0111042]
[1767462134693,0.01101582,90060.0,90056.0,0.06662484]
[1767462134911,0.01110358,90061.0,90057.0,0.04661853]
[1767462135114,0.01039901,90060.0,90057.0,0.04661853]
[1767462135343,0.06662203,90061.0,90057.0,0.11324288]
[1767462135545,0.01039916,90060.0,90057.0,0.11324288]
[1767462135723,0.06662203,90061.0,90057.0,0.0577226]
[1767462135927,0.01039915,90060.0,90057.0,0.0577226]
[1767462136239,0.01110358,90061.0,90057.0,0.0577226]
[1767462136582,0.02150284,90060.0,90057.0,0.0577226]
[1767462136782,0.0111037,90060.0,90057.0,0.0577226]
[1767462139401,0.0111037,90060.0,90057.0,0.0494409]
[1767462139603,0.0111037,90060.0,90057.0,0.01110407]
[1767462139807,0.01110407,90057.0,90048.0,0.10214447]
[1767462140009,0.01110407,90057.0,90045.0,0.01110555]
[1767462140010,0.01110494,90050.0,90045.0,0.05552776]
[1767462140207,0.01110494,90050.0,90045.0,0.06663331]
[1767462140612,0.06663005,90050.0,90045.0,0.01110555]
[1767462140850,0.06663005,90050.0,90047.0,0.021201]
[1767462141652,0.01110494,90050.0,90047.0,0.021201]
[1767462142051,0.06663013,90050.0,90047.0,0.021201]
[1767462145708,0.01110494,90050.0,90047.0,0.021201]
[1767462147454,0.06663009,90050.0,90047.0,0.021201]
[1767462149691,0.01110531,90047.0,90042.0,0.01110592]
[1767462149904,0.01110531,90047.0,90043.0,0.0111058]
[1767462150121,0.01110543,90046.0,90043.0,0.0111058]
[1767462150279,0.01110531,90047.0,90043.0,0.06663438]
[1767462150603,0.01110531,90047.0,90043.0,0.0111058]
[1767462150823,0.01110531,90047.0,90044.0,0.01110568]
[1767462151314,0.01110531,90047.0,90043.0,0.0111058]
[1767462152753,0.0666326,90046.0,90042.0,0.01110592]
[1767462153852,0.01110518,90048.0,90043.0,0.0111058]
[1767462154054,0.06663239,90047.0,90043.0,0.0111058]